Workbook

Sheet Przewodnik
G1: PRZEWODNIK | H1: PRZYCHÓD
B2: OSOBISTY PRZEPŁYW GOTÓWKOWY
B3: Ten skoroszyt zawiera arkusze roczny, miesięczny i dzienny przepływu gotówkowego. Wybierz najodpowiedniejszy dla siebie typ przepływu gotówkowego lub używaj ich wszystkich, aby lepiej zrozumieć swój osobisty przepływ gotówkowy.
B5: Roczny przepływ gotówkowy | D5: Miesięczny przepływ gotówkowy | F5: Dzienny przepływ gotówkowy
B6: Wprowadź w różnych obszarach kwotę rocznego przepływu gotówkowego. Sprawdź zestawienie miesięczne i porównanie wszystkich pozycji, a co najważniejsze — wartości rocznych i miesięcznych wyników końcowych. | D6: Wprowadź występujący u Ciebie co miesiąc przepływ gotówkowy lub oszacuj pozostałe miesiące, aby poznać prognozę przepływu gotówkowego na rok dla każdego miesiąca. | F6: Wprowadź szacowaną kwotę przepływu gotówkowego występującego u Ciebie codziennie i przejrzyj szacowane sumy miesięczne i roczne. Umożliwia to ustalenie, jak codzienne nawyki związane z wydatkami przełożą się na okres miesiąca lub roku.

Sheet Roczny przepływ gotówkowy
B1: OSOBISTY PRZEPŁYW GOTÓWKOWY | G1: PRZEWODNIK | H1: ROCZNY PRZEPŁYW GOTÓWKOWY | J1: MIESIĘCZNY PRZEPŁYW GOTÓWKOWY
B2: Łączny przepływ gotówkowy do dzisiaj: | D2: =Roczny_przepływ_gotówkowy_do_dzisiaj -> 39,750.00 zł | G2: Jest to szacunek roczny. Ten arkusz umożliwia przeglądanie kwot rocznych z szacowanymi wartościami miesięcznymi. Inne arkusze umożliwiają dodawanie pozycji codziennych.
B3: PODSUMOWANIE PRZYCHODU | F3: PODSUMOWANIE WYDATKÓW | J3: PODSUMOWANIE DOWOLNYCH | N3: PODSUMOWANIE OSZCZĘDNOŚCI
B4: Suma roczna: | C4: =Przychód!C10 -> 125,000.00 zł | F4: Suma roczna: | G4: =Wydatki[[#Totals],[Roczne ]] -> 49,000.00 zł | J4: Suma roczna: | K4: =Dowolne[[#Totals],[Roczne ]] -> 13,250.00 zł | N4: Suma roczna: | O4: =Oszczędności[[#Totals],[Roczne ]] -> 23,000.00 zł
B5: W tej komórce znajduje się wykres kołowy przedstawiający przychód z różnych źródeł. | F5: W tej komórce znajduje się wykres kołowy przedstawiający ponoszone wydatki. | J5: W tej komórce znajduje się wykres kołowy przedstawiający wydatki dowolne. | N5: W tej komórce znajduje się wykres kołowy przedstawiający oszczędności i inwestycje.
B6: Suma miesięczna: | C6: =Przychód!D10 -> 10,416.67 zł | F6: Suma miesięczna: | G6: =Wydatki[[#Totals],[Miesięczne ]] -> 4,083.33 zł | J6: Suma miesięczna: | K6: =Dowolne[[#Totals],[Miesięczne ]] -> 1,104.17 zł | N6: Suma miesięczna: | O6: =Oszczędności!D9 -> 1,916.67 zł

Sheet Miesięczny przepływ gotówkowy
B1: OSOBISTY PRZEPŁYW GOTÓWKOWY | H1: PRZEWODNIK | I1: ROCZNY PRZEPŁYW GOTÓWKOWY | J1: MIESIĘCZNY PRZEPŁYW GOTÓWKOWY | K1: PODSUMOWANIE DZIENNE
B2: Łączny miesięczny przepływ gotówkowy: | D2: =Miesięczny_przepływ_gotówkowy_do_dzisiaj -> 18,380.00 zł | F2: UWAGA: W przypadku pozycji codziennych oszacuj kwotę/wartość miesięczną i umieść ją w odpowiedniej kolumnie miesiąca.
B3: Typ | C3: Opis | D3: Sty | E3: Lut | F3: Mar | G3: Kwi | H3: Maj | I3: Cze | J3: Lip | K3: Sie | L3: Wrz | M3: Paź | N3: Lis | O3: Gru | P3: Suma
B4: Przychód | C4: Wynagrodzenie | D4: 7,500.00 zł | E4: 7,500.00 zł | F4: 7,500.00 zł | G4: 7,500.00 zł | H4: 7,500.00 zł | I4: 7,500.00 zł | P4: =SUM(Miesięczne[[#This Row],[Sty]:[Gru]]) -> 45,000.00 zł
B5: Przychód | C5: Prowizje/premie | D5: 400.00 zł | E5: 400.00 zł | F5: 500.00 zł | G5: 200.00 zł | H5: 0.00 zł | I5: 600.00 zł | P5: =SUM(Miesięczne[[#This Row],[Sty]:[Gru]]) -> 2,100.00 zł
B6: Przychód | C6: Inne 1 | D6: 2,500.00 zł | E6: 2,500.00 zł | F6: 2,500.00 zł | G6: 2,500.00 zł | H6: 2,500.00 zł | I6: 2,500.00 zł | P6: =SUM(Miesięczne[[#This Row],[Sty]:[Gru]]) -> 15,000.00 zł
B7: Przychód | C7: Inne 2 | D7: 0.00 zł | E7: 0.00 zł | F7: 0.00 zł | G7: 0.00 zł | H7: 0.00 zł | I7: 0.00 zł | P7: =SUM(Miesięczne[[#This Row],[Sty]:[Gru]]) -> 0.00 zł
B8: Przychód | C8: Inne 3 | D8: 0.00 zł | E8: 0.00 zł | F8: 0.00 zł | G8: 0.00 zł | H8: 0.00 zł | I8: 0.00 zł | P8: =SUM(Miesięczne[[#This Row],[Sty]:[Gru]]) -> 0.00 zł
B9: Przychód | C9: Inne 4 | D9: 0.00 zł | E9: 0.00 zł | F9: 0.00 zł | G9: 0.00 zł | H9: 0.00 zł | I9: 0.00 zł | P9: =SUM(Miesięczne[[#This Row],[Sty]:[Gru]]) -> 0.00 zł
B10: Wydatki | C10: ZUS/NFZ | D10: 1,250.00 zł | E10: 1,250.00 zł | F10: 1,250.00 zł | G10: 1,250.00 zł | H10: 1,250.00 zł | I10: 1,250.00 zł | P10: =SUM(Miesięczne[[#This Row],[Sty]:[Gru]]) -> 7,500.00 zł
B11: Wydatki | C11: Podatek dochodowy | D11: 208.33 zł | E11: 208.33 zł | F11: 208.33 zł | G11: 208.33 zł | H11: 208.33 zł | I11: 208.33 zł | P11: =SUM(Miesięczne[[#This Row],[Sty]:[Gru]]) -> 1,250.00 zł
B12: Wydatki | C12: Podatki związane z samochodem | D12: 16.67 zł | E12: 16.67 zł | F12: 16.67 zł | G12: 16.67 zł | H12: 16.67 zł | I12: 16.67 zł | P12: =SUM(Miesięczne[[#This Row],[Sty]:[Gru]]) -> 100.00 zł
B13: Wydatki | C13: Opłaty za samochód | D13: 333.33 zł | E13: 333.33 zł | F13: 333.33 zł | G13: 333.33 zł | H13: 333.33 zł | I13: 333.33 zł | P13: =SUM(Miesięczne[[#This Row],[Sty]:[Gru]]) -> 2,000.00 zł
B14: Wydatki | C14: Hipoteka/czynsz | D14: 1,250.00 zł | E14: 1,250.00 zł | F14: 1,250.00 zł | G14: 1,250.00 zł | H14: 1,250.00 zł | I14: 1,250.00 zł | P14: =SUM(Miesięczne[[#This Row],[Sty]:[Gru]]) -> 7,500.00 zł
B15: Wydatki | C15: Ubezpieczenie | D15: 25.00 zł | E15: 25.00 zł | F15: 25.00 zł | G15: 25.00 zł | H15: 25.00 zł | I15: 25.00 zł | P15: =SUM(Miesięczne[[#This Row],[Sty]:[Gru]]) -> 150.00 zł
B16: Wydatki | C16: Energia elektryczna | D16: 100.00 zł | E16: 100.00 zł | F16: 100.00 zł | G16: 100.00 zł | H16: 100.00 zł | I16: 100.00 zł | P16: =SUM(Miesięczne[[#This Row],[Sty]:[Gru]]) -> 600.00 zł
B17: Wydatki | C17: Paliwo | D17: 50.00 zł | E17: 50.00 zł | F17: 50.00 zł | G17: 50.00 zł | H17: 50.00 zł | I17: 50.00 zł | P17: =SUM(Miesięczne[[#This Row],[Sty]:[Gru]]) -> 300.00 zł
B18: Wydatki | C18: Woda | D18: 50.00 zł | E18: 50.00 zł | F18: 50.00 zł | G18: 50.00 zł | H18: 50.00 zł | I18: 50.00 zł | P18: =SUM(Miesięczne[[#This Row],[Sty]:[Gru]]) -> 300.00 zł
B19: Wydatki | C19: Kanalizacja | D19: 25.00 zł | E19: 25.00 zł | F19: 25.00 zł | G19: 25.00 zł | H19: 25.00 zł | I19: 25.00 zł | P19: =SUM(Miesięczne[[#This Row],[Sty]:[Gru]]) -> 150.00 zł
B20: Wydatki | C20: Odpady | D20: 12.50 zł | E20: 12.50 zł | F20: 12.50 zł | G20: 12.50 zł | H20: 12.50 zł | I20: 12.50 zł | P20: =SUM(Miesięczne[[#This Row],[Sty]:[Gru]]) -> 75.00 zł
B21: Wydatki | C21: Telefon | D21: 50.00 zł | E21: 50.00 zł | F21: 50.00 zł | G21: 50.00 zł | H21: 50.00 zł | I21: 50.00 zł | P21: =SUM(Miesięczne[[#This Row],[Sty]:[Gru]]) -> 300.00 zł
B22: Wydatki | C22: Internet | D22: 50.00 zł | E22: 50.00 zł | F22: 50.00 zł | G22: 50.00 zł | H22: 50.00 zł | I22: 50.00 zł | P22: =SUM(Miesięczne[[#This Row],[Sty]:[Gru]]) -> 300.00 zł
B23: Wydatki | C23: Świadczenia | D23: 125.00 zł | E23: 125.00 zł | F23: 125.00 zł | G23: 125.00 zł | H23: 125.00 zł | I23: 125.00 zł | P23: =SUM(Miesięczne[[#This Row],[Sty]:[Gru]]) -> 750.00 zł
B24: Wydatki | C24: Żywność | D24: 400.00 zł | E24: 500.00 zł | F24: 450.00 zł | G24: 400.00 zł | H24: 450.00 zł | I24: 425.00 zł | P24: =SUM(Miesięczne[[#This Row],[Sty]:[Gru]]) -> 2,625.00 zł
B25: Wydatki | C25: Ubrania | D25: 50.00 zł | E25: 75.00 zł | F25: 100.00 zł | G25: 75.00 zł | H25: 125.00 zł | I25: 75.00 zł | P25: =SUM(Miesięczne[[#This Row],[Sty]:[Gru]]) -> 500.00 zł
B26: Wydatki | C26: Medyczne/dentystyczne | D26: 50.00 zł | E26: 10.00 zł | F26: 25.00 zł | G26: 25.00 zł | H26: 20.00 zł | I26: 70.00 zł | P26: =SUM(Miesięczne[[#This Row],[Sty]:[Gru]]) -> 200.00 zł
B27: Wydatki | C27: Autobus | D27: 30.00 zł | E27: 30.00 zł | F27: 30.00 zł | G27: 20.00 zł | H27: 30.00 zł | I27: 30.00 zł | P27: =SUM(Miesięczne[[#This Row],[Sty]:[Gru]]) -> 170.00 zł
B28: Wydatki | C28: Inne 2 | D28: 0.00 zł | E28: 0.00 zł | F28: 0.00 zł | G28: 0.00 zł | H28: 0.00 zł | I28: 0.00 zł | P28: =SUM(Miesięczne[[#This Row],[Sty]:[Gru]]) -> 0.00 zł
B29: Wydatki | C29: Inne 3 | D29: 0.00 zł | E29: 0.00 zł | F29: 0.00 zł | G29: 0.00 zł | H29: 0.00 zł | I29: 0.00 zł | P29: =SUM(Miesięczne[[#This Row],[Sty]:[Gru]]) -> 0.00 zł
B30: Wydatki | C30: Inne 4 | D30: 0.00 zł | E30: 0.00 zł | F30: 0.00 zł | G30: 0.00 zł | H30: 0.00 zł | I30: 0.00 zł | P30: =SUM(Miesięczne[[#This Row],[Sty]:[Gru]]) -> 0.00 zł
B31: Dowolne | C31: Restauracje | D31: 50.00 zł | E31: 150.00 zł | F31: 100.00 zł | G31: 50.00 zł | H31: 150.00 zł | I31: 100.00 zł | P31: =SUM(Miesięczne[[#This Row],[Sty]:[Gru]]) -> 600.00 zł
B32: Dowolne | C32: Prezenty | D32: 25.00 zł | E32: 75.00 zł | F32: 50.00 zł | G32: 25.00 zł | H32: 75.00 zł | I32: 50.00 zł | P32: =SUM(Miesięczne[[#This Row],[Sty]:[Gru]]) -> 300.00 zł
B33: Dowolne | C33: Podróże | D33: 0.00 zł | E33: 0.00 zł | F33: 1,000.00 zł | G33: 0.00 zł | H33: 0.00 zł | I33: 1,000.00 zł | P33: =SUM(Miesięczne[[#This Row],[Sty]:[Gru]]) -> 2,000.00 zł
B34: Dowolne | C34: Rozrywka | D34: 50.00 zł | E34: 150.00 zł | F34: 100.00 zł | G34: 50.00 zł | H34: 150.00 zł | I34: 100.00 zł | P34: =SUM(Miesięczne[[#This Row],[Sty]:[Gru]]) -> 600.00 zł
B35: Dowolne | C35: Wydatki osobiste | D35: 15.00 zł | E35: 25.00 zł | F35: 35.00 zł | G35: 15.00 zł | H35: 25.00 zł | I35: 35.00 zł | P35: =SUM(Miesięczne[[#This Row],[Sty]:[Gru]]) -> 150.00 zł
B36: Dowolne | C36: Zakupy | D36: 100.00 zł | E36: 200.00 zł | F36: 150.00 zł | G36: 175.00 zł | H36: 150.00 zł | I36: 175.00 zł | P36: =SUM(Miesięczne[[#This Row],[Sty]:[Gru]]) -> 950.00 zł
B37: Dowolne | C37: Cele charytatywne | D37: 50.00 zł | E37: 50.00 zł | F37: 50.00 zł | G37: 50.00 zł | H37: 50.00 zł | I37: 50.00 zł | P37: =SUM(Miesięczne[[#This Row],[Sty]:[Gru]]) -> 300.00 zł
B38: Dowolne | C38: Kluby/członkostwa | D38: 25.00 zł | E38: 25.00 zł | F38: 25.00 zł | G38: 25.00 zł | H38: 25.00 zł | I38: 25.00 zł | P38: =SUM(Miesięczne[[#This Row],[Sty]:[Gru]]) -> 150.00 zł
B39: Dowolne | C39: Ulepszenia w domu | D39: 400.00 zł | E39: 400.00 zł | F39: 400.00 zł | G39: 400.00 zł | H39: 400.00 zł | I39: 400.00 zł | P39: =SUM(Miesięczne[[#This Row],[Sty]:[Gru]]) -> 2,400.00 zł
B40: Dowolne | C40: Inne 1 | D40: 0.00 zł | E40: 0.00 zł | F40: 0.00 zł | G40: 0.00 zł | H40: 0.00 zł | I40: 0.00 zł | P40: =SUM(Miesięczne[[#This Row],[Sty]:[Gru]]) -> 0.00 zł
B41: Dowolne | C41: Inne 2 | D41: 0.00 zł | E41: 0.00 zł | F41: 0.00 zł | G41: 0.00 zł | H41: 0.00 zł | I41: 0.00 zł | P41: =SUM(Miesięczne[[#This Row],[Sty]:[Gru]]) -> 0.00 zł
B42: Oszczędności | C42: Rezerwa gotówkowa | D42: 416.67 zł | E42: 416.67 zł | F42: 416.67 zł | G42: 416.67 zł | H42: 416.67 zł | I42: 416.67 zł | P42: =SUM(Miesięczne[[#This Row],[Sty]:[Gru]]) -> 2,500.00 zł
B43: Oszczędności | C43: IKE itp. | D43: 1,000.00 zł | E43: 1,000.00 zł | F43: 1,000.00 zł | G43: 1,000.00 zł | H43: 1,000.00 zł | I43: 1,000.00 zł | P43: =SUM(Miesięczne[[#This Row],[Sty]:[Gru]]) -> 6,000.00 zł
B44: Oszczędności | C44: Konto oszczędnościowe/inwestycyjne | D44: 500.00 zł | E44: 500.00 zł | F44: 500.00 zł | G44: 500.00 zł | H44: 500.00 zł | I44: 500.00 zł | P44: =SUM(Miesięczne[[#This Row],[Sty]:[Gru]]) -> 3,000.00 zł
B45: Oszczędności | C45: Inne 1 | D45: 0.00 zł | E45: 0.00 zł | F45: 0.00 zł | G45: 0.00 zł | H45: 0.00 zł | I45: 0.00 zł | P45: =SUM(Miesięczne[[#This Row],[Sty]:[Gru]]) -> 0.00 zł
B46: Oszczędności | C46: Inne 2 | D46: 0.00 zł | E46: 0.00 zł | F46: 0.00 zł | G46: 0.00 zł | H46: 0.00 zł | I46: 0.00 zł | P46: =SUM(Miesięczne[[#This Row],[Sty]:[Gru]]) -> 0.00 zł
B47: Suma | D47: =SUMIF(Miesięczne[Typ],"Przychód",Miesięczne[Sty])-SUMIF(Miesięczne[Typ],"<>Przychód",Miesięczne[Sty]) -> 3,692.50 zł | E47: =SUMIF(Miesięczne[Typ],"Przychód",Miesięczne[Lut])-SUMIF(Miesięczne[Typ],"<>Przychód",Miesięczne[Lut]) -> 3,247.50 zł | F47: =SUMIF(Miesięczne[Typ],"Przychód",Miesięczne[Mar])-SUMIF(Miesięczne[Typ],"<>Przychód",Miesięczne[Mar]) -> 2,522.50 zł | G47: =SUMIF(Miesięczne[Typ],"Przychód",Miesięczne[Kwi])-SUMIF(Miesięczne[Typ],"<>Przychód",Miesięczne[Kwi]) -> 3,427.50 zł | H47: =SUMIF(Miesięczne[Typ],"Przychód",Miesięczne[Maj])-SUMIF(Miesięczne[Typ],"<>Przychód",Miesięczne[Maj]) -> 2,887.50 zł | I47: =SUMIF(Miesięczne[Typ],"Przychód",Miesięczne[Cze])-SUMIF(Miesięczne[Typ],"<>Przychód",Miesięczne[Cze]) -> 2,602.50 zł | J47: =SUMIF(Miesięczne[Typ],"Przychód",Miesięczne[Lip])-SUMIF(Miesięczne[Typ],"<>Przychód",Miesięczne[Lip]) -> 0.00 zł | K47: =SUMIF(Miesięczne[Typ],"Przychód",Miesięczne[Sie])-SUMIF(Miesięczne[Typ],"<>Przychód",Miesięczne[Sie]) -> 0.00 zł | L47: =SUMIF(Miesięczne[Typ],"Przychód",Miesięczne[Wrz])-SUMIF(Miesięczne[Typ],"<>Przychód",Miesięczne[Wrz]) -> 0.00 zł | M47: =SUMIF(Miesięczne[Typ],"Przychód",Miesięczne[Paź])-SUMIF(Miesięczne[Typ],"<>Przychód",Miesięczne[Paź]) -> 0.00 zł | N47: =SUMIF(Miesięczne[Typ],"Przychód",Miesięczne[Lis])-SUMIF(Miesięczne[Typ],"<>Przychód",Miesięczne[Lis]) -> 0.00 zł | O47: =SUMIF(Miesięczne[Typ],"Przychód",Miesięczne[Gru])-SUMIF(Miesięczne[Typ],"<>Przychód",Miesięczne[Gru]) -> 0.00 zł | P47: =SUMIF(Miesięczne[Typ],"Przychód",Miesięczne[Suma])-SUMIF(Miesięczne[Typ],"<>Przychód",Miesięczne[Suma]) -> 18,380.00 zł

Sheet Podsumowanie dzienne
B1: OSOBISTY PRZEPŁYW GOTÓWKOWY | F1: PRZEWODNIK | G1: MIESIĘCZNY PRZEPŁYW GOTÓWKOWY | H1: PODSUMOWANIE DZIENNE | I1: PRZYCHÓD
B2: Łączna dostępna gotówka: | D2: =Dzienny_przepływ_gotówkowy -> 577.84 zł | F2: UWAGA: Jeśli chcesz dodać do tabeli pozycje codzienne oszacuj kwotę/wartość miesięczną i umieść ją w odpowiedniej kolumnie miesiąca.
B3: PODSUMOWANIE DZIENNE
B4: SUMY | C4: Dzienne | D4: Miesięczne | E4: Roczne
B5: Przychód | C5: =SUMIF(Dzienne[Typ],$B5,Dzienne[Dzienne]) -> 342.47 zł | D5: =SUMIF(Dzienne[Typ],$B5,Dzienne[Miesięczne]) -> 10,416.80 zł | E5: =SUMIF(Dzienne[Typ],$B5,Dzienne[Roczne]) -> 125,001.55 zł
B6: Wydatki | C6: =SUMIF(Dzienne[Typ],$B6,Dzienne[Dzienne]) -> 136.06 zł | D6: =SUMIF(Dzienne[Typ],$B6,Dzienne[Miesięczne]) -> 4,138.49 zł | E6: =SUMIF(Dzienne[Typ],$B6,Dzienne[Roczne]) -> 49,661.90 zł
B7: Dowolne | C7: =SUMIF(Dzienne[Typ],$B7,Dzienne[Dzienne]) -> 36.29 zł | D7: =SUMIF(Dzienne[Typ],$B7,Dzienne[Miesięczne]) -> 1,103.82 zł | E7: =SUMIF(Dzienne[Typ],$B7,Dzienne[Roczne]) -> 13,245.85 zł
B8: Oszczędności | C8: =SUMIF(Dzienne[Typ],$B8,Dzienne[Dzienne]) -> 63.02 zł | D8: =SUMIF(Dzienne[Typ],$B8,Dzienne[Miesięczne]) -> 1,916.86 zł | E8: =SUMIF(Dzienne[Typ],$B8,Dzienne[Roczne]) -> 23,002.30 zł
B9: Typ | C9: Opis | D9: Dzienne | E9: Miesięczne | F9: Roczne
B10: Przychód | C10: Wynagrodzenie | D10: 246.58 zł | E10: =Dzienne[[#This Row],[Roczne]]/12 -> 7,500.14 zł | F10: =Dzienne[[#This Row],[Dzienne]]*365 -> 90,001.70 zł
B11: Przychód | C11: Prowizje/premie | D11: 13.70 zł | E11: =Dzienne[[#This Row],[Roczne]]/12 -> 416.71 zł | F11: =Dzienne[[#This Row],[Dzienne]]*365 -> 5,000.50 zł
B12: Przychód | C12: Inne 1 | D12: 82.19 zł | E12: =Dzienne[[#This Row],[Roczne]]/12 -> 2,499.95 zł | F12: =Dzienne[[#This Row],[Dzienne]]*365 -> 29,999.35 zł
B13: Przychód | C13: Inne 2 | D13: 0.00 zł | E13: =Dzienne[[#This Row],[Roczne]]/12 -> 0.00 zł | F13: =Dzienne[[#This Row],[Dzienne]]*365 -> 0.00 zł
B14: Przychód | C14: Inne 3 | D14: 0.00 zł | E14: =Dzienne[[#This Row],[Roczne]]/12 -> 0.00 zł | F14: =Dzienne[[#This Row],[Dzienne]]*365 -> 0.00 zł
B15: Przychód | C15: Inne 4 | D15: 0.00 zł | E15: =Dzienne[[#This Row],[Roczne]]/12 -> 0.00 zł | F15: =Dzienne[[#This Row],[Dzienne]]*365 -> 0.00 zł
B16: Wydatki | C16: ZUS/NFZ | D16: 41.10 zł | E16: =Dzienne[[#This Row],[Roczne]]/12 -> 1,250.13 zł | F16: =Dzienne[[#This Row],[Dzienne]]*365 -> 15,001.50 zł
B17: Wydatki | C17: Podatek dochodowy | D17: 6.85 zł | E17: =Dzienne[[#This Row],[Roczne]]/12 -> 208.35 zł | F17: =Dzienne[[#This Row],[Dzienne]]*365 -> 2,500.25 zł
B18: Wydatki | C18: Podatki związane z samochodem | D18: 0.55 zł | E18: =Dzienne[[#This Row],[Roczne]]/12 -> 16.73 zł | F18: =Dzienne[[#This Row],[Dzienne]]*365 -> 200.75 zł
B19: Wydatki | C19: Opłaty za samochód | D19: 10.96 zł | E19: =Dzienne[[#This Row],[Roczne]]/12 -> 333.37 zł | F19: =Dzienne[[#This Row],[Dzienne]]*365 -> 4,000.40 zł
B20: Wydatki | C20: Hipoteka/czynsz | D20: 41.10 zł | E20: =Dzienne[[#This Row],[Roczne]]/12 -> 1,250.13 zł | F20: =Dzienne[[#This Row],[Dzienne]]*365 -> 15,001.50 zł
B21: Wydatki | C21: Ubezpieczenie | D21: 0.68 zł | E21: =Dzienne[[#This Row],[Roczne]]/12 -> 20.68 zł | F21: =Dzienne[[#This Row],[Dzienne]]*365 -> 248.20 zł
B22: Wydatki | C22: Energia elektryczna | D22: 3.29 zł | E22: =Dzienne[[#This Row],[Roczne]]/12 -> 100.07 zł | F22: =Dzienne[[#This Row],[Dzienne]]*365 -> 1,200.85 zł
B23: Wydatki | C23: Paliwo | D23: 1.64 zł | E23: =Dzienne[[#This Row],[Roczne]]/12 -> 49.88 zł | F23: =Dzienne[[#This Row],[Dzienne]]*365 -> 598.60 zł
B24: Wydatki | C24: Woda | D24: 1.64 zł | E24: =Dzienne[[#This Row],[Roczne]]/12 -> 49.88 zł | F24: =Dzienne[[#This Row],[Dzienne]]*365 -> 598.60 zł
B25: Wydatki | C25: Kanalizacja | D25: 0.82 zł | E25: =Dzienne[[#This Row],[Roczne]]/12 -> 24.94 zł | F25: =Dzienne[[#This Row],[Dzienne]]*365 -> 299.30 zł
B26: Wydatki | C26: Odpady | D26: 0.41 zł | E26: =Dzienne[[#This Row],[Roczne]]/12 -> 12.47 zł | F26: =Dzienne[[#This Row],[Dzienne]]*365 -> 149.65 zł
B27: Wydatki | C27: Telefon | D27: 1.64 zł | E27: =Dzienne[[#This Row],[Roczne]]/12 -> 49.88 zł | F27: =Dzienne[[#This Row],[Dzienne]]*365 -> 598.60 zł
B28: Wydatki | C28: Internet | D28: 1.64 zł | E28: =Dzienne[[#This Row],[Roczne]]/12 -> 49.88 zł | F28: =Dzienne[[#This Row],[Dzienne]]*365 -> 598.60 zł
B29: Wydatki | C29: Świadczenia | D29: 4.11 zł | E29: =Dzienne[[#This Row],[Roczne]]/12 -> 125.01 zł | F29: =Dzienne[[#This Row],[Dzienne]]*365 -> 1,500.15 zł
B30: Wydatki | C30: Żywność | D30: 13.70 zł | E30: =Dzienne[[#This Row],[Roczne]]/12 -> 416.71 zł | F30: =Dzienne[[#This Row],[Dzienne]]*365 -> 5,000.50 zł
B31: Wydatki | C31: Ubrania | D31: 3.29 zł | E31: =Dzienne[[#This Row],[Roczne]]/12 -> 100.07 zł | F31: =Dzienne[[#This Row],[Dzienne]]*365 -> 1,200.85 zł
B32: Wydatki | C32: Medyczne/dentystyczne | D32: 1.64 zł | E32: =Dzienne[[#This Row],[Roczne]]/12 -> 49.88 zł | F32: =Dzienne[[#This Row],[Dzienne]]*365 -> 598.60 zł
B33: Wydatki | C33: Autobus | D33: 1.00 zł | E33: =Dzienne[[#This Row],[Roczne]]/12 -> 30.42 zł | F33: =Dzienne[[#This Row],[Dzienne]]*365 -> 365.00 zł
B34: Wydatki | C34: Inne 2 | D34: 0.00 zł | E34: =Dzienne[[#This Row],[Roczne]]/12 -> 0.00 zł | F34: =Dzienne[[#This Row],[Dzienne]]*365 -> 0.00 zł
B35: Wydatki | C35: Inne 3 | D35: 0.00 zł | E35: =Dzienne[[#This Row],[Roczne]]/12 -> 0.00 zł | F35: =Dzienne[[#This Row],[Dzienne]]*365 -> 0.00 zł
B36: Wydatki | C36: Inne 4 | D36: 0.00 zł | E36: =Dzienne[[#This Row],[Roczne]]/12 -> 0.00 zł | F36: =Dzienne[[#This Row],[Dzienne]]*365 -> 0.00 zł
B37: Dowolne | C37: Restauracje | D37: 3.29 zł | E37: =Dzienne[[#This Row],[Roczne]]/12 -> 100.07 zł | F37: =Dzienne[[#This Row],[Dzienne]]*365 -> 1,200.85 zł
B38: Dowolne | C38: Prezenty | D38: 1.64 zł | E38: =Dzienne[[#This Row],[Roczne]]/12 -> 49.88 zł | F38: =Dzienne[[#This Row],[Dzienne]]*365 -> 598.60 zł
B39: Dowolne | C39: Podróże | D39: 6.16 zł | E39: =Dzienne[[#This Row],[Roczne]]/12 -> 187.37 zł | F39: =Dzienne[[#This Row],[Dzienne]]*365 -> 2,248.40 zł
B40: Dowolne | C40: Rozrywka | D40: 3.29 zł | E40: =Dzienne[[#This Row],[Roczne]]/12 -> 100.07 zł | F40: =Dzienne[[#This Row],[Dzienne]]*365 -> 1,200.85 zł
B41: Dowolne | C41: Wydatki osobiste | D41: 0.82 zł | E41: =Dzienne[[#This Row],[Roczne]]/12 -> 24.94 zł | F41: =Dzienne[[#This Row],[Dzienne]]*365 -> 299.30 zł
B42: Dowolne | C42: Zakupy | D42: 5.48 zł | E42: =Dzienne[[#This Row],[Roczne]]/12 -> 166.68 zł | F42: =Dzienne[[#This Row],[Dzienne]]*365 -> 2,000.20 zł
B43: Dowolne | C43: Cele charytatywne | D43: 1.64 zł | E43: =Dzienne[[#This Row],[Roczne]]/12 -> 49.88 zł | F43: =Dzienne[[#This Row],[Dzienne]]*365 -> 598.60 zł
B44: Dowolne | C44: Kluby/członkostwa | D44: 0.82 zł | E44: =Dzienne[[#This Row],[Roczne]]/12 -> 24.94 zł | F44: =Dzienne[[#This Row],[Dzienne]]*365 -> 299.30 zł
B45: Dowolne | C45: Ulepszenia w domu | D45: 13.15 zł | E45: =Dzienne[[#This Row],[Roczne]]/12 -> 399.98 zł | F45: =Dzienne[[#This Row],[Dzienne]]*365 -> 4,799.75 zł
B46: Dowolne | C46: Inne 1 | D46: 0.00 zł | E46: =Dzienne[[#This Row],[Roczne]]/12 -> 0.00 zł | F46: =Dzienne[[#This Row],[Dzienne]]*365 -> 0.00 zł
B47: Dowolne | C47: Inne 2 | D47: 0.00 zł | E47: =Dzienne[[#This Row],[Roczne]]/12 -> 0.00 zł | F47: =Dzienne[[#This Row],[Dzienne]]*365 -> 0.00 zł
B48: Oszczędności | C48: Rezerwa gotówkowa | D48: 13.70 zł | E48: =Dzienne[[#This Row],[Roczne]]/12 -> 416.71 zł | F48: =Dzienne[[#This Row],[Dzienne]]*365 -> 5,000.50 zł
B49: Oszczędności | C49: IKE itp. | D49: 32.88 zł | E49: =Dzienne[[#This Row],[Roczne]]/12 -> 1,000.10 zł | F49: =Dzienne[[#This Row],[Dzienne]]*365 -> 12,001.20 zł
B50: Oszczędności | C50: Konto oszczędnościowe/inwestycyjne | D50: 16.44 zł | E50: =Dzienne[[#This Row],[Roczne]]/12 -> 500.05 zł | F50: =Dzienne[[#This Row],[Dzienne]]*365 -> 6,000.60 zł
B51: Oszczędności | C51: Inne 1 | D51: 0.00 zł | E51: =Dzienne[[#This Row],[Roczne]]/12 -> 0.00 zł | F51: =Dzienne[[#This Row],[Dzienne]]*365 -> 0.00 zł
B52: Oszczędności | C52: Inne 2 | D52: 0.00 zł | E52: =Dzienne[[#This Row],[Roczne]]/12 -> 0.00 zł | F52: =Dzienne[[#This Row],[Dzienne]]*365 -> 0.00 zł
B53: Suma | D53: =SUMIF(Dzienne[Typ],"Przychód",Dzienne[Dzienne])-SUMIF(Dzienne[Typ],"<>Przychód",Dzienne[Dzienne]) -> 107.10 zł | E53: =SUMIF(Dzienne[Typ],"Przychód",Dzienne[Miesięczne])-SUMIF(Dzienne[Typ],"<>Przychód",Dzienne[Miesięczne]) -> 3,257.63 zł | F53: =SUMIF(Dzienne[Typ],"Przychód",Dzienne[Roczne])-SUMIF(Dzienne[Typ],"<>Przychód",Dzienne[Roczne]) -> 39,091.50 zł

Sheet Przychód
B1: OSOBISTY PRZEPŁYW GOTÓWKOWY | F1: PRZEWODNIK | G1: PODSUMOWANIE DZIENNE | H1: PRZYCHÓD | I1: WYDATKI
B2: Łączny przepływ gotówkowy do dzisiaj: | D2: =Roczny_przepływ_gotówkowy_do_dzisiaj -> 39,750.00 zł | F2: Jest to szacunek roczny. Ten arkusz umożliwia przeglądanie kwot rocznych z szacowanymi wartościami miesięcznymi Jeśli chcesz dodać do tabel pozycje codzienne oszacuj kwotę/wartość roczną i umieść ją w kolumnie roku.
B3: Przychód | C3: Roczne | D3: Miesięczne
B4: Wynagrodzenie | C4: 90,000.00 zł | D4: =Przychód[[#This Row],[Roczne ]]/12 -> 7,500.00 zł
B5: Prowizje/premie | C5: 5,000.00 zł | D5: =Przychód[[#This Row],[Roczne ]]/12 -> 416.67 zł
B6: Inne 1 | C6: 30,000.00 zł | D6: =Przychód[[#This Row],[Roczne ]]/12 -> 2,500.00 zł
B7: Inne 2 | D7: =Przychód[[#This Row],[Roczne ]]/12 -> 0.00 zł
B8: Inne 3 | D8: =Przychód[[#This Row],[Roczne ]]/12 -> 0.00 zł
B9: Inne 4 | D9: =Przychód[[#This Row],[Roczne ]]/12 -> 0.00 zł
B10: Suma | C10: =SUBTOTAL(109,Przychód[[Roczne ]]) -> 125,000.00 zł | D10: =SUBTOTAL(109,Przychód[[Miesięczne ]]) -> 10,416.67 zł

Sheet Wydatki
B1: OSOBISTY PRZEPŁYW GOTÓWKOWY | F1: PRZEWODNIK | G1: PRZYCHÓD | H1: WYDATKI | I1: DOWOLNE
B2: Łączny przepływ gotówkowy do dzisiaj: | D2: =Roczny_przepływ_gotówkowy_do_dzisiaj -> 39,750.00 zł | F2: Jest to szacunek roczny. Ten arkusz umożliwia przeglądanie kwot rocznych z szacowanymi wartościami miesięcznymi Jeśli chcesz dodać do tabel pozycje codzienne oszacuj kwotę/wartość roczną i umieść ją w kolumnie roku.
B3: Wydatki | C3: Roczne | D3: Miesięczne
B4: ZUS/NFZ | C4: 15,000.00 zł | D4: =Wydatki[[#This Row],[Roczne ]]/12 -> 1,250.00 zł
B5: Podatek dochodowy | C5: 2,500.00 zł | D5: =Wydatki[[#This Row],[Roczne ]]/12 -> 208.33 zł
B6: Podatki związane z samochodem | C6: 200.00 zł | D6: =Wydatki[[#This Row],[Roczne ]]/12 -> 16.67 zł
B7: Opłaty za samochód | C7: 4,000.00 zł | D7: =Wydatki[[#This Row],[Roczne ]]/12 -> 333.33 zł
B8: Hipoteka/czynsz | C8: 15,000.00 zł | D8: =Wydatki[[#This Row],[Roczne ]]/12 -> 1,250.00 zł
B9: Ubezpieczenie | C9: 250.00 zł | D9: =Wydatki[[#This Row],[Roczne ]]/12 -> 20.83 zł
B10: Energia elektryczna | C10: 1,200.00 zł | D10: =Wydatki[[#This Row],[Roczne ]]/12 -> 100.00 zł
B11: Paliwo | C11: 600.00 zł | D11: =Wydatki[[#This Row],[Roczne ]]/12 -> 50.00 zł
B12: Woda/kanalizacja | C12: 600.00 zł | D12: =Wydatki[[#This Row],[Roczne ]]/12 -> 50.00 zł
B13: Odpady | C13: 150.00 zł | D13: =Wydatki[[#This Row],[Roczne ]]/12 -> 12.50 zł
B14: Telefon | C14: 600.00 zł | D14: =Wydatki[[#This Row],[Roczne ]]/12 -> 50.00 zł
B15: Internet | C15: 600.00 zł | D15: =Wydatki[[#This Row],[Roczne ]]/12 -> 50.00 zł
B16: Świadczenia | C16: 1,500.00 zł | D16: =Wydatki[[#This Row],[Roczne ]]/12 -> 125.00 zł
B17: Żywność | C17: 5,000.00 zł | D17: =Wydatki[[#This Row],[Roczne ]]/12 -> 416.67 zł
B18: Ubrania | C18: 1,200.00 zł | D18: =Wydatki[[#This Row],[Roczne ]]/12 -> 100.00 zł
B19: Medyczne/dentystyczne | C19: 600.00 zł | D19: =Wydatki[[#This Row],[Roczne ]]/12 -> 50.00 zł
B20: Inne 1 | D20: =Wydatki[[#This Row],[Roczne ]]/12 -> 0.00 zł
B21: Inne 2 | D21: =Wydatki[[#This Row],[Roczne ]]/12 -> 0.00 zł
B22: Suma | C22: =SUBTOTAL(109,Wydatki[[Roczne ]]) -> 49,000.00 zł | D22: =SUBTOTAL(109,Wydatki[[Miesięczne ]]) -> 4,083.33 zł

Sheet Dowolne
B1: OSOBISTY PRZEPŁYW GOTÓWKOWY | F1: PRZEWODNIK | G1: WYDATKI | H1: DOWOLNE | I1: OSZCZĘDNOŚCI
B2: Łączny przepływ gotówkowy do dzisiaj: | D2: =Roczny_przepływ_gotówkowy_do_dzisiaj -> 39,750.00 zł | F2: Jest to szacunek roczny. Ten arkusz umożliwia przeglądanie kwot rocznych z szacowanymi wartościami miesięcznymi Jeśli chcesz dodać do tabel pozycje codzienne oszacuj kwotę/wartość roczną i umieść ją w kolumnie roku.
B3: Wydatki dowolne | C3: Roczne | D3: Miesięczne
B4: Restauracje | C4: 1,200.00 zł | D4: =Dowolne[[#This Row],[Roczne ]]/12 -> 100.00 zł
B5: Prezenty | C5: 600.00 zł | D5: =Dowolne[[#This Row],[Roczne ]]/12 -> 50.00 zł
B6: Podróże | C6: 2,250.00 zł | D6: =Dowolne[[#This Row],[Roczne ]]/12 -> 187.50 zł
B7: Rozrywka | C7: 1,200.00 zł | D7: =Dowolne[[#This Row],[Roczne ]]/12 -> 100.00 zł
B8: Wydatki osobiste | C8: 300.00 zł | D8: =Dowolne[[#This Row],[Roczne ]]/12 -> 25.00 zł
B9: Zakupy | C9: 2,000.00 zł | D9: =Dowolne[[#This Row],[Roczne ]]/12 -> 166.67 zł
B10: Cele charytatywne | C10: 600.00 zł | D10: =Dowolne[[#This Row],[Roczne ]]/12 -> 50.00 zł
B11: Kluby/członkostwa | C11: 300.00 zł | D11: =Dowolne[[#This Row],[Roczne ]]/12 -> 25.00 zł
B12: Ulepszenia w domu | C12: 4,800.00 zł | D12: =Dowolne[[#This Row],[Roczne ]]/12 -> 400.00 zł
B13: Inne 1 | D13: =Dowolne[[#This Row],[Roczne ]]/12 -> 0.00 zł
B14: Inne 2 | D14: =Dowolne[[#This Row],[Roczne ]]/12 -> 0.00 zł
B15: Suma | C15: =SUBTOTAL(109,Dowolne[[Roczne ]]) -> 13,250.00 zł | D15: =SUBTOTAL(109,Dowolne[[Miesięczne ]]) -> 1,104.17 zł

Sheet Oszczędności
B1: OSOBISTY PRZEPŁYW GOTÓWKOWY | F1: PRZEWODNIK | G1: DOWOLNE | H1: OSZCZĘDNOŚCI
B2: Łączny przepływ gotówkowy do dzisiaj: | D2: =Roczny_przepływ_gotówkowy_do_dzisiaj -> 39,750.00 zł | F2: Jest to szacunek roczny. Ten arkusz umożliwia przeglądanie kwot rocznych z szacowanymi wartościami miesięcznymi Jeśli chcesz dodać do tabel pozycje codzienne oszacuj kwotę/wartość roczną i umieść ją w kolumnie roku.
B3: Oszczędności | C3: Roczne | D3: Miesięczne
B4: Rezerwa gotówkowa | C4: 5,000.00 zł | D4: =Oszczędności[[#This Row],[Roczne ]]/12 -> 416.67 zł
B5: IKE itp. | C5: 12,000.00 zł | D5: =Oszczędności[[#This Row],[Roczne ]]/12 -> 1,000.00 zł
B6: Oszczędności/inwestycje | C6: 6,000.00 zł | D6: =Oszczędności[[#This Row],[Roczne ]]/12 -> 500.00 zł
B7: Inne 1 | D7: =Oszczędności[[#This Row],[Roczne ]]/12 -> 0.00 zł
B8: Inne 2 | D8: =Oszczędności[[#This Row],[Roczne ]]/12 -> 0.00 zł
B9: Suma | C9: =SUBTOTAL(109,Oszczędności[[Roczne ]]) -> 23,000.00 zł | D9: =SUBTOTAL(109,Oszczędności[[Miesięczne ]]) -> 1,916.67 zł
